bitfinex-derivatives/quotes_BTCF0:USTF0_20241221
["timestamp","ask_amount","ask_price","bid_price","bid_amount"]
[1734815727193,0.08744641,97372.0,97371.0,0.45040518]
[1734815727386,0.21281352,97385.0,97384.0,0.051361]
[1734815727590,0.21281352,97385.0,97384.0,0.45038783]
[1734815728596,0.01544,97412.0,97404.0,0.05135]
[1734815728897,0.01037128,97411.0,97404.0,0.05135]
[1734815729103,0.01037123,97410.0,97404.0,0.05135]
[1734815729304,0.01037123,97409.0,97404.0,0.05135]
[1734815729497,0.01037123,97412.0,97404.0,0.05135]
[1734815730000,0.00454046,97405.0,97404.0,0.05135]
[1734815730402,0.01254046,97405.0,97404.0,0.05235]
[1734815732009,0.01254046,97405.0,97391.0,0.18427846]
[1734815732010,0.051355,97396.0,97391.0,0.18427846]
[1734815732194,0.051356,97393.0,97391.0,0.18427846]
[1734815733305,0.051357,97392.0,97390.0,0.051357]
[1734815734530,0.053357,97392.0,97390.0,0.051357]
[1734815735130,0.0317,97391.0,97390.0,0.051357]
[1734815737026,0.0337,97391.0,97390.0,0.051357]
[1734815737824,0.0347,97391.0,97390.0,0.051357]
[1734815738725,0.0337,97391.0,97390.0,0.051357]
[1734815738928,0.0367,97391.0,97390.0,0.051357]
[1734815739319,0.0377,97391.0,97390.0,0.051357]
[1734815739835,0.0327,97391.0,97390.0,0.051357]
[1734815740024,0.0377,97391.0,97390.0,0.051357]
[1734815740529,0.0367,97391.0,97390.0,0.051357]
[1734815741228,0.0357,97391.0,97390.0,0.051357]
[1734815741529,0.0367,97391.0,97390.0,0.051357]
[1734815742126,0.05136,97386.0,97384.0,0.00154027]
[1734815742323,0.0312,97385.0,97384.0,0.00154027]
[1734815742524,0.392,97385.0,97378.0,0.18427846]
[1734815742728,0.051363,97379.0,97371.0,0.03457846]
[1734815743027,0.3608,97372.0,97371.0,0.03457846]
[1734815744223,0.3608,97372.0,97366.0,0.05137]
[1734815744433,0.3608,97372.0,97352.0,0.01044805]
[1734815744633,0.3608,97364.0,97361.0,0.051372]
[1734815744930,0.051375,97357.0,97354.0,0.051376]
[1734815745126,0.3608,97355.0,97354.0,0.051376]
[1734815746623,0.3608,97355.0,97354.0,0.053376]
[1734815747729,0.3608,97355.0,97354.0,0.054376]
[1734815754237,0.3608,97355.0,97354.0,0.003]
[1734815754840,0.37116723,97355.0,97354.0,0.003]
[1734815755441,0.37116723,97355.0,97347.0,8.647e-05]
[1734815755442,0.05138,97348.0,97347.0,8.647e-05]
[1734815755836,0.41218,97348.0,97347.0,8.647e-05]
[1734815756541,0.41318,97348.0,97347.0,0.00808647]
[1734815756737,0.41318,97348.0,97347.0,0.01208647]
[1734815758034,0.41318,97348.0,97347.0,0.00207742]
[1734815759047,0.41328999,97348.0,97347.0,0.00207742]
[1734815760454,0.36190999,97348.0,97347.0,0.00207742]
[1734815760655,0.36190999,97348.0,97347.0,0.09707742]
[1734815765149,0.36190999,97348.0,97347.0,0.00207742]
[1734815766340,0.00110999,97348.0,97347.0,0.00207742]
[1734815768158,0.00110999,97348.0,97347.0,0.01213456]
[1734815769856,0.00110999,97348.0,97347.0,0.00207742]
[1734815772259,0.01155012,97348.0,97347.0,0.00207742]
[1734815772556,0.01162136,97348.0,97347.0,0.00207742]
[1734815773360,0.04512136,97348.0,97347.0,0.00207742]
[1734815773564,0.04511043,97348.0,97347.0,0.00207742]
[1734815774060,0.051383,97341.0,97340.0,0.00154071]
[1734815774258,0.051387,97335.0,97333.0,0.0036]
[1734815774461,0.01050028,97334.0,97333.0,0.054988]
[1734815775669,0.01050028,97334.0,97333.0,0.0036]
[1734815775964,0.01150028,97334.0,97333.0,0.0066]
[1734815776357,0.01250028,97334.0,97333.0,0.0126]
[1734815776761,0.02258044,97334.0,97333.0,0.0126]
[1734815781164,0.02158044,97334.0,97333.0,0.0066]
[1734815781367,0.02458044,97334.0,97333.0,0.0066]
[1734815781760,0.07365306,97334.0,97333.0,0.0036]
[1734815781963,0.08165306,97334.0,97333.0,0.0036]
[1734815782668,0.07163179,97334.0,97333.0,0.0036]
[1734815783370,0.011,97334.0,97333.0,0.0368]
[1734815790077,0.011,97334.0,97333.0,0.0036]
[1734815790280,0.07278197,97334.0,97333.0,0.0036]
[1734815790571,0.062387,97334.0,97333.0,0.0036]
[1734815791375,0.423187,97334.0,97333.0,0.0036]
[1734815791772,0.43363488,97334.0,97333.0,0.0036]
[1734815791968,0.43263488,97334.0,97333.0,0.0036]
[1734815792172,0.44200695,97334.0,97333.0,0.0036]
[1734815792566,0.45744695,97334.0,97333.0,0.0036]
[1734815792978,0.44699907,97334.0,97333.0,0.0036]
[1734815793280,0.45742678,97334.0,97333.0,0.0036]
[1734815793884,0.6097825,97334.0,97333.0,0.0036]
[1734815797875,0.60979228,97334.0,97333.0,0.0036]
[1734815799093,0.051392,97326.0,97322.0,0.051393]
[1734815799293,0.051392,97324.0,97322.0,0.051393]
[1734815799478,0.01043749,97323.0,97322.0,0.051393]
[1734815799784,0.01043749,97323.0,97307.0,0.051401]
[1734815800084,0.412198,97313.0,97307.0,0.051401]
[1734815800287,0.42263549,97313.0,97307.0,0.051401]
[1734815801684,0.5446389,97313.0,97307.0,0.051401]
[1734815802184,0.5446389,97313.0,97301.0,0.084604]
[1734815802386,0.5446389,97313.0,97301.0,0.0332]
[1734815802692,0.051404,97301.0,97300.0,0.1]
[1734815802985,0.412204,97301.0,97300.0,0.1]
[1734815803183,0.42269349,97301.0,97300.0,0.1]
[1734815803582,0.412204,97301.0,97300.0,0.1]
[1734815804181,0.42269349,97301.0,97300.0,0.1]
[1734815804585,0.412204,97301.0,97300.0,0.1]
[1734815805089,0.412204,97301.0,97300.0,0.105]
[1734815805299,0.42373699,97301.0,97300.0,0.105]
[1734815805582,0.413204,97301.0,97300.0,0.105]
[1734815805887,0.53520741,97301.0,97300.0,0.104]
[1734815806188,0.54523926,97301.0,97300.0,0.104]
[1734815807378,0.42323585,97301.0,97300.0,0.104]
[1734815808388,0.051415,97281.0,97280.0,0.00072]
[1734815808684,0.05142,97273.0,97270.0,0.05142]
[1734815809388,0.05142,97272.0,97266.0,0.24570461]
[1734815809580,0.05142,97272.0,97266.0,0.29712761]
[1734815809975,0.001,97273.0,97266.0,0.24570461]
[1734815810185,0.001,97273.0,97270.0,0.051421]
[1734815811087,0.052419,97273.0,97263.0,0.0692]
[1734815811388,0.053419,97273.0,97270.0,0.006]
[1734815811791,0.052419,97273.0,97270.0,0.006]
[1734815811987,0.001,97272.0,97270.0,0.006]
[1734815812487,0.053419,97273.0,97263.0,0.0732]
[1734815813195,0.001,97272.0,97268.0,0.051422]
[1734815813507,0.051421,97271.0,97263.0,0.0732]
[1734815813680,0.3608,97265.0,97263.0,0.0732]
[1734815813992,0.051422,97268.0,97263.0,0.0732]
[1734815814194,0.051422,97268.0,97263.0,0.0692]
[1734815815075,0.002,97265.0,97263.0,0.0762]
[1734815815584,0.002,97265.0,97263.0,0.120624]
[1734815815789,0.053422,97268.0,97263.0,0.127624]
[1734815816485,0.001,97265.0,97263.0,0.127624]
[1734815816690,0.413224,97265.0,97263.0,0.0762]
[1734815818088,0.3628,97265.0,97263.0,0.127624]
[1734815818282,0.002,97265.0,97263.0,0.127624]
[1734815818485,0.001,97265.0,97263.0,0.127624]
[1734815819289,0.002,97265.0,97263.0,0.127624]
[1734815822785,0.002,97265.0,97263.0,0.058424]
[1734815822992,0.002,97265.0,97264.0,0.1017]
[1734815824094,0.002,97265.0,97264.0,0.1087]
[1734815828491,0.01272308,97265.0,97264.0,0.0402]
[1734815828697,0.01272308,97265.0,97264.0,0.007]
[1734815828999,0.37352308,97265.0,97264.0,0.007]
[1734815829800,0.3628,97265.0,97264.0,0.007]
[1734815830093,0.03005122,97265.0,97264.0,0.007]
[1734815830295,0.01923849,97265.0,97264.0,0.007]
[1734815830507,0.01277406,97265.0,97264.0,0.007]
[1734815830798,0.03001255,97265.0,97264.0,0.007]
[1734815832401,0.02901255,97265.0,97264.0,0.007]
[1734815832699,0.03001255,97265.0,97264.0,0.007]
[1734815833091,0.39081255,97265.0,97264.0,0.007]
[1734815833390,0.44123555,97265.0,97264.0,0.003]
[1734815835495,0.4413234,97265.0,97264.0,0.003]
[1734815835806,0.44130838,97265.0,97264.0,0.003]
[1734815836095,0.56331179,97265.0,97264.0,0.003]
[1734815837597,0.44130838,97265.0,97264.0,0.003]
[1734815837986,0.44137187,97265.0,97264.0,0.003]
[1734815841396,0.56581512,97265.0,97264.0,0.003]
[1734815841586,0.59398067,97265.0,97264.0,0.003]
[1734815841791,0.54255767,97265.0,97264.0,0.003]
[1734815841993,0.18175767,97265.0,97264.0,0.003]
[1734815842812,0.0292534,97265.0,97264.0,0.003]
[1734815843004,0.01192075,97265.0,97264.0,0.003]
[1734815843895,0.02892705,97265.0,97264.0,0.003]
[1734815846894,0.1204371,97265.0,97264.0,0.003]
[1734815847603,0.1034308,97265.0,97264.0,0.003]
[1734815848005,0.01192075,97265.0,97264.0,0.003]
[1734815848202,0.02892705,97265.0,97264.0,0.003]
[1734815848808,0.01192075,97265.0,97264.0,0.003]
[1734815849195,0.1204371,97265.0,97264.0,0.003]
[1734815850009,0.4812371,97265.0,97264.0,0.003]
[1734815850201,0.4966771,97265.0,97264.0,0.003]
[1734815850395,0.40516705,97265.0,97264.0,0.003]
[1734815850599,0.52724538,97265.0,97264.0,0.003]
[1734815852306,0.40516705,97265.0,97264.0,0.003]
[1734815852696,0.40516705,97265.0,97258.0,8.988e-05]
[1734815852924,0.051427,97259.0,97258.0,8.988e-05]
[1734815853106,0.05143,97252.0,97251.0,0.24570461]
[1734815853306,0.43996426,97252.0,97251.0,0.24570461]
[1734815853501,0.051432,97248.0,97247.0,0.24570461]
[1734815853697,0.06216488,97248.0,97247.0,0.24570461]
[1734815854812,0.06316488,97248.0,97239.0,0.051437]
[1734815855012,0.051434,97245.0,97239.0,0.051437]
[1734815855205,0.01073288,97244.0,97239.0,0.051437]
[1734815855406,0.01073288,97243.0,97239.0,0.051437]
[1734815855614,0.01073288,97242.0,97239.0,0.051437]
[1734815855804,0.01073288,97241.0,97239.0,0.051437]
[1734815856111,0.001,97248.0,97239.0,0.051437]
[1734815856112,0.01073288,97240.0,97239.0,0.051437]
[1734815857303,0.01173288,97240.0,97239.0,0.053437]
[1734815858008,0.001,97240.0,97239.0,0.053437]
[1734815858207,0.002,97240.0,97239.0,0.053437]
[1734815861308,0.002,97240.0,97239.0,0.1019579]
[1734815861915,0.002,97240.0,97239.0,0.0638359]
[1734815862120,0.002,97240.0,97239.0,0.10196155]
[1734815863010,0.002,97240.0,97239.0,0.61207545]
[1734815864716,0.002,97240.0,97239.0,0.30547981]
[1734815865113,0.002,97240.0,97239.0,0.26735416]
[1734815866218,0.002,97240.0,97239.0,0.0638359]
[1734815867312,0.09148042,97258.0,97239.0,0.05052775]
[1734815867507,0.01067283,97257.0,97252.0,0.3608]
[1734815867708,0.01067283,97256.0,97255.0,0.051429]
[1734815870111,0.01167283,97256.0,97255.0,0.056429]
[1734815870317,0.01267283,97256.0,97255.0,0.057429]
[1734815872521,0.01267283,97256.0,97255.0,0.24211448]
[1734815873821,0.01267601,97256.0,97255.0,0.24211448]
[1734815875321,0.01267601,97256.0,97255.0,0.057429]
[1734815879227,0.0298861,97256.0,97255.0,0.057429]
[1734815879416,0.01272542,97256.0,97255.0,0.057429]
[1734815879812,0.0298861,97256.0,97255.0,0.057429]
[1734815880014,0.01272542,97256.0,97255.0,0.057429]
[1734815880417,0.0298861,97256.0,97255.0,0.057429]
[1734815880617,0.01272542,97256.0,97255.0,0.057429]
[1734815881326,0.02992031,97256.0,97255.0,0.057429]
[1734815883835,0.002,97256.0,97255.0,0.057429]
[1734815884121,0.03005133,97256.0,97255.0,0.057429]
[1734815885832,0.15204373,97256.0,97255.0,0.057429]
[1734815886749,0.51284373,97256.0,97255.0,0.057429]
[1734815886918,0.51288063,97256.0,97255.0,0.006]
[1734815887124,0.39088823,97256.0,97255.0,0.006]
[1734815888630,0.44089008,97256.0,97255.0,0.006]
[1734815889820,0.39089001,97256.0,97255.0,0.006]
[1734815892629,0.3628,97256.0,97255.0,0.006]
[1734815892830,0.51547991,97256.0,97255.0,0.006]
[1734815893031,0.15467991,97256.0,97255.0,0.006]
[1734815893333,0.18278726,97256.0,97255.0,0.006]
[1734815894334,0.01281052,97256.0,97255.0,0.006]
[1734815894631,0.37361052,97256.0,97255.0,0.006]
[1734815895426,0.52629043,97256.0,97255.0,0.006]
[1734815895947,0.51547991,97256.0,97255.0,0.006]
[1734815896634,0.3628,97256.0,97255.0,0.006]
[1734815897135,0.37824,97256.0,97255.0,0.006]
[1734815897319,0.3628,97256.0,97255.0,0.006]
[1734815897723,0.39089149,97256.0,97255.0,0.006]
[1734815899737,0.03009149,97256.0,97255.0,0.006]
[1734815899931,0.01280442,97256.0,97255.0,0.0398]
[1734815900331,0.09158798,97261.0,97256.0,0.051428]
[1734815900528,0.09158798,97261.0,97260.0,0.051426]
[1734815900835,8.785e-05,97265.0,97264.0,0.051424]
[1734815901030,8.785e-05,97265.0,97264.0,0.45039134]
[1734815901642,8.785e-05,97265.0,97264.0,0.412224]
[1734815902040,0.01082894,97265.0,97264.0,0.61711872]
[1734815902436,0.01084827,97265.0,97264.0,0.61711872]
[1734815902628,0.01084827,97265.0,97264.0,0.25631872]
[1734815902824,0.01184827,97265.0,97264.0,0.25831872]
[1734815903233,0.01184827,97265.0,97264.0,0.053424]
[1734815903448,0.01084827,97265.0,97264.0,0.053424]
[1734815903930,0.01084827,97265.0,97264.0,0.057424]
[1734815904133,0.01184827,97265.0,97264.0,0.057424]
[1734815904634,0.01084827,97265.0,97264.0,0.052424]
[1734815904841,0.01084919,97265.0,97264.0,0.053424]
[1734815905534,0.01184919,97265.0,97264.0,0.052424]
[1734815905940,0.01184919,97265.0,97264.0,0.051424]
[1734815906244,0.01384919,97265.0,97264.0,0.051424]
[1734815906538,0.02906733,97265.0,97264.0,0.051424]
[1734815906740,0.02223156,97265.0,97264.0,0.051424]
[1734815907038,0.38986733,97265.0,97264.0,0.051424]
[1734815907336,0.37264919,97265.0,97264.0,0.051424]
[1734815907539,0.01184919,97265.0,97264.0,0.051424]
[1734815907743,0.00108785,97265.0,97264.0,0.051424]
[1734815907939,0.01183539,97265.0,97264.0,0.051424]
[1734815908131,0.00108785,97265.0,97264.0,0.085024]
[1734815908530,8.785e-05,97265.0,97264.0,0.085024]
[1734815909336,8.785e-05,97265.0,97264.0,0.087024]
[1734815909834,0.00108785,97265.0,97264.0,0.089024]
[1734815911241,0.00108785,97265.0,97264.0,0.090024]
[1734815912741,8.785e-05,97265.0,97264.0,0.088024]
[1734815913044,0.00108785,97265.0,97264.0,0.090024]
[1734815913634,0.01071637,97283.0,97264.0,0.090024]
[1734815913931,0.01071637,97285.0,97284.0,0.051413]
[1734815914338,0.45283435,97286.0,97284.0,0.051413]
[1734815914635,0.3608,97286.0,97285.0,0.0337]
[1734815914839,0.36090217,97286.0,97285.0,0.0337]
[1734815915238,0.00010217,97286.0,97285.0,0.3945]
[1734815915845,0.00310217,97286.0,97285.0,0.3945]
[1734815916537,0.00910217,97286.0,97285.0,0.3945]
[1734815919341,0.00910217,97286.0,97285.0,0.40456406]
[1734815924042,0.00910217,97286.0,97285.0,0.37086406]
[1734815924443,0.00910217,97286.0,97285.0,0.3608]
[1734815925250,0.00910217,97286.0,97284.0,0.051413]
[1734815927639,0.0312,97285.0,97284.0,0.051413]
[1734815928547,0.04187404,97285.0,97265.0,0.18594378]
[1734815928748,0.051423,97267.0,97265.0,0.18594378]
[1734815929055,0.46817404,97266.0,97265.0,0.18594378]
[1734815930056,0.46817404,97266.0,97265.0,0.00154191]
[1734815930645,0.46817404,97266.0,97265.0,0.002]
[1734815930646,0.52059704,97266.0,97265.0,0.002]
[1734815931159,0.61211138,97266.0,97265.0,0.002]
[1734815931358,0.61211138,97266.0,97265.0,0.005]
[1734815931551,0.62755138,97266.0,97265.0,0.005]
[1734815932159,0.62755138,97266.0,97265.0,0.003]
[1734815932465,0.62655138,97266.0,97265.0,0.003]
[1734815932858,0.65717421,97266.0,97265.0,0.003]
[1734815933156,0.65717421,97266.0,97248.0,0.051432]
[1734815933356,0.051432,97250.0,97248.0,0.051432]
[1734815934560,0.051432,97250.0,97248.0,0.056432]
[1734815934561,0.052432,97250.0,97248.0,0.056432]
[1734815935062,0.052432,97250.0,97248.0,0.005]
[1734815935255,0.053432,97250.0,97248.0,0.006]
[1734815937853,9.373e-05,97249.0,97248.0,0.006]
[1734815939252,0.00109373,97249.0,97248.0,0.006]
[1734815939653,0.00209373,97249.0,97248.0,0.005]
[1734815939853,0.03489373,97249.0,97248.0,0.005]
[1734815940049,0.06839373,97249.0,97248.0,0.005]
[1734815941562,0.06963712,97249.0,97248.0,0.005]
[1734815942862,0.08081005,97249.0,97248.0,0.005]
[1734815943061,0.051441,97231.0,97227.0,0.051443]
[1734815943560,0.3608,97231.0,97216.0,0.18440187]
[1734815943864,0.051448,97218.0,97216.0,0.18440187]
[1734815944052,0.00211481,97217.0,97216.0,0.18440187]
[1734815944362,0.00211481,97217.0,97216.0,0.23585087]
[1734815945162,0.00211481,97217.0,97216.0,0.051449]
[1734815945552,0.00311481,97217.0,97216.0,0.051449]
[1734815945757,0.00311481,97217.0,97216.0,0.052449]
[1734815946256,0.3608,97241.0,97216.0,0.001]
[1734815946452,0.3608,97241.0,97239.0,0.051437]
[1734815946661,0.412236,97241.0,97231.0,0.051441]
[1734815946865,0.412236,97241.0,97231.0,0.0307]
[1734815947459,0.3608,97241.0,97238.0,0.051438]
[1734815947761,0.3608,97241.0,97239.0,0.051437]
[1734815948660,0.3638,97241.0,97239.0,0.051437]
[1734815949168,0.002,97241.0,97240.0,0.3608]
[1734815949358,0.002,97241.0,97240.0,0.3915]
[1734815949657,0.003,97241.0,97240.0,0.4234]
[1734815950065,0.001,97241.0,97240.0,0.4234]
[1734815950264,0.003,97241.0,97240.0,0.4234]
[1734815950450,0.002,97241.0,97240.0,0.4234]
[1734815950651,0.003,97241.0,97240.0,0.4234]
[1734815951657,0.002,97241.0,97240.0,0.4234]
[1734815952561,0.00330335,97241.0,97240.0,0.4234]
[1734815953268,0.00330335,97241.0,97240.0,0.0626]
[1734815954662,0.00330335,97241.0,97239.0,0.051437]
[1734815955570,0.00130335,97240.0,97239.0,0.051437]
[1734815956762,0.00230335,97240.0,97239.0,0.051437]
[1734815957557,0.01305234,97240.0,97239.0,0.051437]
[1734815958362,0.01305234,97240.0,97239.0,0.412237]
[1734815958566,0.0134869,97240.0,97239.0,0.412237]
[1734815958867,0.00273791,97240.0,97239.0,0.412237]
[1734815959765,0.00317247,97240.0,97239.0,0.412237]
[1734815960667,0.00317247,97240.0,97239.0,0.65810616]
[1734815960860,0.001,97240.0,97239.0,0.65810616]
[1734815961062,0.00360703,97240.0,97239.0,0.65810616]
[1734815962163,0.01438445,97240.0,97239.0,0.412237]
[1734815962968,0.01438445,97240.0,97239.0,0.051437]
[1734815963675,0.01438445,97240.0,97237.0,0.18476921]
[1734815963676,0.051438,97238.0,97237.0,0.18476921]
[1734815963858,0.06225003,97238.0,97237.0,0.18476921]
[1734815964060,0.0822041,97238.0,97237.0,0.18476921]
[1734815964962,0.0822041,97238.0,97237.0,0.23620721]
[1734815965163,0.0822041,97238.0,97237.0,0.052438]
[1734815965868,0.0822041,97238.0,97237.0,0.001]
[1734815966973,0.08263679,97238.0,97237.0,0.001]
[1734815968179,0.08307206,97238.0,97237.0,0.001]
[1734815968866,0.09356276,97238.0,97237.0,0.001]
[1734815971566,0.45436276,97238.0,97237.0,0.001]
[1734815972865,0.46994185,97238.0,97237.0,0.001]
[1734815973063,0.051446,97222.0,97221.0,0.18476921]
[1734815973262,0.44054416,97222.0,97221.0,0.18476921]
[1734815973679,0.051447,97220.0,97218.0,0.18476921]
[1734815973876,0.01479417,97219.0,97218.0,0.18476921]
[1734815974675,0.03220842,97219.0,97218.0,0.18476921]
[1734815974876,0.05145,97214.0,97209.0,0.23622221]
[1734815975066,0.42313391,97214.0,97209.0,0.23622221]
[1734815975274,0.42309835,97214.0,97209.0,0.23622221]
[1734815975876,0.42700861,97214.0,97209.0,0.23622221]
[1734815976073,0.42800861,97214.0,97209.0,0.23622221]
[1734815976275,0.42800861,97214.0,97209.0,0.051453]
[1734815977586,0.42911355,97214.0,97213.0,0.00207902]
[1734815978165,0.42910595,97214.0,97213.0,0.00207902]
[1734815978369,0.44645115,97214.0,97213.0,0.00207902]
[1734815978676,0.42810595,97214.0,97213.0,7.902e-05]
[1734815978876,0.42910595,97214.0,97213.0,0.00207902]
[1734815979277,0.44645115,97214.0,97213.0,0.00207902]
[1734815979579,0.42910595,97214.0,97213.0,0.00207902]
[1734815980082,0.44645115,97214.0,97213.0,0.00207902]
[1734815980268,0.42910595,97214.0,97213.0,0.00207902]
[1734815980989,0.42810595,97214.0,97213.0,0.00207902]
[1734815981277,0.42810595,97214.0,97201.0,0.00154278]
[1734815981278,0.55012198,97214.0,97201.0,0.00154278]
[1734815981482,0.412257,97202.0,97201.0,0.00154278]
[1734815981979,0.41616726,97202.0,97201.0,0.00154278]
[1734815982468,0.41616726,97202.0,97201.0,0.00354278]
[1734815983974,0.41716726,97202.0,97201.0,0.00154278]
[1734815985076,0.41816726,97202.0,97201.0,0.00154278]
[1734815986584,0.42864016,97202.0,97201.0,0.00154278]
[1734815987881,0.42864016,97202.0,97192.0,0.0956]
[1734815988973,0.00391026,97201.0,97192.0,0.0956]
[1734815990277,0.00391026,97201.0,97192.0,0.0327]
[1734815990671,0.02035026,97201.0,97192.0,0.0327]
[1734815990876,0.02135026,97201.0,97192.0,0.0327]
[1734815991682,0.03220576,97201.0,97192.0,0.0327]
[1734815993185,0.02135026,97201.0,97192.0,0.0327]
[1734815993580,0.03220576,97201.0,97192.0,0.0327]
[1734815995286,0.02135026,97201.0,97192.0,0.0327]
[1734815995484,0.03220576,97201.0,97192.0,0.0327]
[1734815995674,0.03200357,97201.0,97192.0,0.0327]
[1734815997283,0.01656357,97201.0,97192.0,0.0327]
[1734815998693,0.01656725,97201.0,97192.0,0.0327]
[1734815998990,0.10786564,97201.0,97199.0,0.051458]
[1734815999586,0.10786564,97201.0,97200.0,0.1335]
[1734816000089,0.01656786,97201.0,97200.0,0.1335]
[1734816000292,0.01656786,97201.0,97200.0,0.1657]
[1734816000788,0.01659405,97201.0,97200.0,0.1657]
[1734816001589,0.12201603,97208.0,97201.0,0.051457]
[1734816001895,0.02121603,97208.0,97206.0,0.051455]
[1734816002087,0.15245019,97214.0,97213.0,0.051451]
[1734816002483,0.051453,97209.0,97207.0,0.051454]
[1734816002894,0.0318,97213.0,97205.0,0.3608]
[1734816002895,0.051455,97206.0,97205.0,0.3608]
[1734816003695,0.051455,97206.0,97204.0,0.051456]
[1734816003999,0.051456,97203.0,97202.0,0.51475574]
[1734816004191,0.051456,97203.0,97200.0,0.31699239]
[1734816004397,0.051456,97203.0,97200.0,0.36845039]
[1734816005492,0.051456,97203.0,97200.0,0.183658]
[1734816005799,0.01705246,97205.0,97200.0,0.1]
[1734816005990,0.051457,97202.0,97200.0,0.1]
[1734816006195,0.01705246,97205.0,97202.0,0.051457]
[1734816006398,0.06861242,97205.0,97202.0,0.051457]
[1734816006600,0.001,97203.0,97200.0,0.101]
[1734816006801,0.051457,97201.0,97200.0,0.102]
[1734816007395,0.051457,97201.0,97200.0,0.101]
[1734816007787,0.051457,97201.0,97200.0,0.152458]
[1734816008507,0.001,97203.0,97202.0,0.051457]
[1734816009290,0.15234525,97209.0,97208.0,0.051454]
[1734816009491,0.04765742,97221.0,97213.0,0.051451]
[1734816009492,0.15234525,97219.0,97213.0,0.051451]
[1734816010493,0.01544,97218.0,97213.0,0.051451]
[1734816011094,0.00110494,97214.0,97213.0,0.052451]
[1734816012199,0.00110494,97214.0,97213.0,0.053451]
[1734816013500,0.01174788,97214.0,97213.0,0.053451]
[1734816014191,0.00110494,97214.0,97213.0,0.053451]
[1734816015906,0.0117044,97214.0,97213.0,0.053451]
[1734816016803,0.00110494,97214.0,97213.0,0.053451]
[1734816017504,0.30110494,97214.0,97213.0,0.053451]
[1734816017712,0.051464,97189.0,97174.0,0.43218607]
[1734816017895,0.412264,97189.0,97174.0,0.43218607]
[1734816018602,0.422858,97189.0,97174.0,0.43218607]
[1734816018806,0.371394,97189.0,97174.0,0.43218607]
[1734816019004,0.0813508,97184.0,97174.0,0.051471]
[1734816019312,0.051471,97177.0,97174.0,0.051471]
[1734816019712,0.051471,97176.0,97174.0,0.051471]
[1734816021206,0.052471,97176.0,97174.0,0.051471]
[1734816021812,0.001,97176.0,97170.0,0.00154367]
[1734816022012,0.051472,97173.0,97170.0,0.00154367]
[1734816023217,0.052472,97173.0,97170.0,0.00154367]
[1734816023825,0.053472,97173.0,97170.0,0.00154367]
[1734816029735,0.41438891,97173.0,97170.0,0.00154367]
[1734816030030,0.051482,97154.0,97151.0,0.05142667]
[1734816030227,0.051479,97160.0,97154.0,0.051482]
[1734816030428,0.051481,97156.0,97154.0,0.051482]
[1734816031736,0.051492,97136.0,97135.0,0.00076]
[1734816031932,0.051493,97134.0,97116.0,0.3608]
[1734816032129,0.051493,97134.0,97119.0,0.0515]
[1734816032332,0.05160674,97134.0,97119.0,0.0515]
[1734816032531,0.05160674,97134.0,97116.0,0.3608]
[1734816032839,0.05160674,97134.0,97122.0,0.051499]
[1734816033223,0.05160674,97134.0,97116.0,0.3608]
[1734816033426,0.05260674,97134.0,97131.0,0.051494]
[1734816033632,0.05360674,97134.0,97131.0,0.051494]
[1734816033834,0.00211374,97134.0,97132.0,0.051494]
[1734816034430,0.00211374,97134.0,97133.0,0.06312916]
[1734816034943,0.15189222,97155.0,97154.0,0.051482]
[1734816035435,0.15189222,97155.0,97154.0,0.412282]
[1734816035639,0.066911,97176.0,97154.0,0.412282]
[1734816035830,0.12216485,97170.0,97163.0,0.412277]
[1734816036035,0.00167507,97164.0,97163.0,0.412277]
[1734816036926,0.00013049,97164.0,97163.0,0.412277]
[1734816037133,0.00213049,97164.0,97163.0,0.412277]
[1734816037637,0.051478,97162.0,97159.0,0.051479]
[1734816037827,0.00313049,97164.0,97144.0,0.033]
[1734816038033,0.00313049,97164.0,97162.0,0.051478]
[1734816038233,0.00313049,97164.0,97155.0,0.0325]
[1734816038429,0.051478,97163.0,97155.0,0.083981]
[1734816038733,0.051478,97162.0,97156.0,0.051481]
[1734816040042,0.00213049,97164.0,97156.0,0.051481]
[1734816040231,0.001,97162.0,97156.0,0.051481]
[1734816040729,0.00013049,97164.0,97156.0,0.052481]
[1734816041133,0.051479,97160.0,97156.0,0.052481]
[1734816041543,0.051479,97160.0,97157.0,0.05148]
[1734816041844,0.00013049,97164.0,97156.0,0.001]
[1734816042242,0.00213049,97164.0,97156.0,0.001]
[1734816042442,0.00213049,97164.0,97159.0,0.3608]
[1734816042648,0.00413049,97164.0,97159.0,0.3608]
[1734816043035,0.00213049,97164.0,97162.0,0.051478]
[1734816043345,0.00313049,97164.0,97162.0,0.051478]
[1734816043754,0.00513049,97164.0,97162.0,0.051478]
[1734816044246,0.00413049,97164.0,97162.0,0.051478]
[1734816044446,0.00513049,97164.0,97162.0,0.051478]
[1734816045941,0.00313049,97164.0,97162.0,0.051478]
[1734816046143,0.051478,97162.0,97160.0,0.3608]
[1734816046342,0.00513049,97164.0,97160.0,0.3608]
[1734816046645,0.051478,97162.0,97152.0,0.051483]
[1734816046849,0.05148,97159.0,97152.0,0.051483]
[1734816047141,0.12216485,97162.0,97152.0,0.051483]
[1734816047342,0.01051948,97161.0,97152.0,0.051483]
[1734816047545,0.051484,97151.0,97145.0,0.051487]
[1734816048345,0.051487,97145.0,97143.0,0.36234399]
[1734816049051,0.051487,97145.0,97143.0,0.00154399]
[1734816049350,0.3608,97144.0,97143.0,0.00154399]
[1734816049849,0.3608,97146.0,97143.0,0.05403199]
[1734816050051,0.001,97145.0,97143.0,0.05503199]
[1734816050353,0.01151948,97145.0,97143.0,0.05503199]
[1734816050542,0.001,97144.0,97143.0,0.05403199]
[1734816050742,0.001,97144.0,97143.0,0.05503199]
[1734816051137,0.001,97144.0,97143.0,0.05403199]
[1734816051349,0.01051948,97145.0,97143.0,0.05503199]
[1734816052154,0.06200648,97145.0,97143.0,0.05403199]
[1734816052365,0.06200648,97145.0,97143.0,0.05503199]
[1734816052555,0.01052256,97144.0,97143.0,0.05503199]